Cogmind - Beta 13 @@@ ROGUE MODE // 2024.04.04 @ 21:02:41 Player: Kiselkoff Result: Destroyed by G-47 Trooper with Particle Gun Performance ------------- Evolutions (0) 0 Regions Visited (2) 400 Robots Destroyed (40) 200 Value Destroyed (966) 966 Prototype IDs (2) 40 Alien Tech Used (0) 0 Bonus (0) 0 TOTAL SCORE: 1606 Bonus ------- None Cogmind --------- Core Integrity 0/250 Matter 286/300 Energy 100/100 System Corruption 0% Temperature Cool (9) Movement Walking (190) Ox1 Location -10/Mines Parts ------- > --- POWER (1) -------- (None) > --- PROPULSION (2) --- Aluminum Leg Aluminum Leg > --- UTILITY (2) ------ Improved Heat Sink Large Storage Unit > --- WEAPON (2) ------- Light Assault Rifle Light Assault Rifle > --- INVENTORY (15) --- Aluminum Leg Aluminum Leg Heat Sink Improved Heat Sink Large Storage Unit Sensor Array Signal Interpreter Core Shielding Small Laser Beam Cannon Beam Cannon Beam Cannon Peak State ------------ > --- POWER ------------ Light Nuclear Core > --- PROPULSION ------- Aluminum Leg > --- UTILITY ---------- Improved Heat Sink Large Storage Unit > --- WEAPON ----------- Beam Cannon Beam Cannon > --- INVENTORY -------- Ion Engine Heat Sink Large Storage Unit Core Shielding Small Laser Beam Cannon [Rating: 10] Favorites ----------- Power Light Ion Engine Engine Light Ion Engine Power Core Light Nuclear Core Propulsion Aluminum Leg Leg Aluminum Leg Wheel Wheel Utility Large Storage Unit Device Improved Heat Sink Storage Large Storage Unit Processor Targeting Computer Weapon Beam Cannon Energy Cannon Beam Cannon Ballistic Gun Light Assault Rifle Build | -11 -10 -10 ------- Run | Yrd Mat Min Slots Evolved . | . . . Power . | . . . Propulsion . | . . . Utility . | . . . Weapon . | . . . Parts Attached 27 | 6 16 5 Power 6 | 1 4 1 Engine 5 | 1 3 1 Core 1 | . 1 . Reactor . | . . . Propulsion 9 | 2 5 2 Treads . | . . . Leg 5 | . 3 2 Wheel 4 | 2 2 . Hover . | . . . Flight . | . . . Utility 5 | 1 4 . Device 2 | 1 1 . Storage 2 | . 2 . Processor 1 | . 1 . Hackware . | . . . Protection . | . . . Artifact . | . . . Weapon 7 | 2 3 2 Energy Gun . | . . . Energy Cannon 3 | . 3 . Ballistic Gun 4 | 2 . 2 Ballistic Cannon . | . . . Launcher . | . . . Special Weapon . | . . . Impact Weapon . | . . . Slashing Weapon . | . . . Piercing Weapon . | . . . Special Melee Weapon . | . . . Unidentified Prototypes . | . . . Parts Lost 7 | . 6 1 Power 2 | . 1 1 Propulsion 2 | . 2 . Utility 1 | . 1 . Weapon 2 | . 2 . Highest Loss Streak 2 | . 2 1 To Critical Strikes 1 | . 1 . Average Slot Usage (%) 90 | . 91 87 Engine 7 | . 9 2 Core 2 | . 4 . Leg 19 | . 15 28 Wheel 3 | . 5 . Device 11 | . 11 14 Storage 13 | . 13 14 Processor 2 | . 3 . Energy Cannon 18 | . 22 8 Ballistic Gun 9 | . 5 19 Naked Turns . | . . . Heaviest Build 32 | 6 32 30 Greatest Support 26 | 20 26 20 Greatest Overweight (x) 3 | . 3 1 Average Overweight (x) 1 | . 1 1 Largest Inventory Capacity 15 | 5 15 15 Average Capacity 13 | 5 13 15 Most Carried 13 | 2 9 13 Average Carried 7 | . 6 10 Final Capacity 15 | 5 15 15 Final Carried 12 | 1 9 12 Class Distribution -------------------- 90% | Mutant 9% | Scavenger-Mutant Dominant Class ---------------- Mutant | -10/Materials Mutant | -10/Mines Resources | -11 -10 -10 ----------- Run | Yrd Mat Min Matter Collected 588 | 268 227 93 Remotely . | . . . Salvage Created 1398 | 45 965 388 Parts 84 | 3 55 26 Haulers Intercepted . | . . . Recyclers Shooed 1 | . 1 . Parts Field Recycled . | . . . Retrieved Matter . | . . . Parts Self-Destructed . | . . . Prevented . | . . . Kills | -11 -10 -10 ------- Run | Yrd Mat Min Combat Hostiles Destroyed 30 | 1 21 8 Guns 13 | 1 7 5 Cannons 17 | . 14 3 Classes Destroyed 7 | 1 5 1 Worker 2 | . 2 . Builder 1 | . . 1 Recycler 2 | . 1 1 Operator 2 | . 2 . Watcher 3 | . 3 . Swarmer 8 | . 5 3 Grunt 22 | 1 16 5 Best Kill Streak 6 | 1 6 4 Combat Bots Only 4 | 1 4 4 Max Kills in Single Turn 2 | 1 2 1 Gunslinging . | . . . Exploded . | . . . Melee . | . . . Uniques/NPCs Destroyed . | . . . Combat | -11 -10 -10 -------- Run | Yrd Mat Min Hostile Shots Fired 140 | 6 104 30 Missed 35 | 1 27 7 Damage Taken 1180 | 59 831 290 Core 257 | 11 189 57 Absorbed by Shields . | . . . Core Remaining (%) 95 | 95 . . Volleys Fired 131 | 4 93 34 Largest 2 | 2 2 2 Hottest 120 | 40 120 120 Shots Fired 259 | 8 183 68 Gun 162 | 8 92 62 Cannon 97 | . 91 6 Launcher . | . . . Special . | . . . Kinetic 162 | 8 92 62 Thermal 97 | . 91 6 Explosive . | . . . Electromagnetic . | . . . Robot Hit Streak 11 | 2 11 10 Robot Miss Streak 4 | 2 4 3 Penetration Max . | . . . Secondary Targets . | . . . Shots Hit Robots 157 | 4 105 48 Core Hits 67 | 2 44 21 Critical Kills 1 | . . 1 Critical Parts Destroyed 1 | . . 1 Critical Strikes 2 | . . 2 Destroy 2 | . . 2 Melee Attacks . | . . . Impact . | . . . Slashing . | . . . Piercing . | . . . Sneak Attacks . | . . . Combat Hostiles . | . . . Follow-up Attacks . | . . . Damage Inflicted 1778 | 34 1333 411 Guns 909 | 34 517 358 Cannons 869 | . 816 53 Explosions . | . . . Melee . | . . . Ramming . | . . . Kinetic 909 | 34 517 358 Thermal 869 | . 816 53 Explosive . | . . . Electromagnetic . | . . . Impact . | . . . Slashing . | . . . Piercing . | . . . Highest Corruption . | . . . Average Corruption . | . . . Corruption Purged . | . . . Corruption Blocked . | . . . Overload Shots . | . . . Overflow Damage 14 | . 14 . Projectiles 14 | . 14 . Explosions . | . . . Melee . | . . . Knockbacks . | . . . Impact . | . . . Kinetic . | . . . Secondary . | . . . Self-Inflicted Damage . | . . . Shots . | . . . Rammed . | . . . Targets Rammed . | . . . Kicked . | . . . Crushed . | . . . Highest Temperature 258 | 12 258 9 Average Temperature 53 | 7 56 5 Received Heat Transfer 573 | 30 396 147 Siege Activations . | . . . Robots Corrupted . | . . . Combat Hostiles . | . . . Parts Fried . | . . . Impact Corruptions . | . . . Robots Melted . | . . . Combat Hostiles . | . . . Parts Melted 5 | . 4 1 Heat Transferred 1850 | . 1739 111 Parts Sabotaged . | . . . Parts Stolen . | . . . Parts Stripped . | . . . Power Chain Reactions . | . . . Alert | -11 -10 -10 ------- Run | Yrd Mat Min Peak Influence 265 | 20 265 251 Initial 91 | . 13 91 Average 119 | 3 123 124 Maximum Alert Level 1 | . 1 1 Low Security (%) 85 | 100 87 79 Level 1 14 | . 12 20 Level 2 . | . . . Level 3 . | . . . Level 4 . | . . . Level 5 . | . . . High Security . | . . . Max Security . | . . . Squads Dispatched 7 | . 7 . Investigation 5 | . 5 . Extermination . | . . . Reinforcement 2 | . 2 . Assault . | . . . Garrison . | . . . Intercept . | . . . Searches Triggered . | . . . Construction Impeded . | . . . Haulers Reinforced . | . . . Active Scanning Responses . | . . . Cargo Convoy Interrupts . | . . . Stealth | -11 -10 -10 --------- Run | Yrd Mat Min Distress Signals 1 | . . 1 Communications Jammed . | . . . Distress Signals . | . . . Times Spotted 43 | 1 33 9 Peak Tracking Total 5 | 1 5 3 Tactical Retreats 1 | . 1 . Traps | -11 -10 -10 ------- Run | Yrd Mat Min Traps Triggered 3 | . 3 . Indirectly . | . . . Trap Hack Attempts . | . . . Triggered . | . . . Disarmed . | . . . Reprogrammed . | . . . Reused . | . . . Traps Extracted . | . . . Installed . | . . . Triggered . | . . . Machines | -11 -10 -10 ---------- Run | Yrd Mat Min Machines Disabled . | . . . Max in Single Turn . | . . . Machines Repaired . | . . . Machines Dismantled . | . . . Machines Sabotaged . | . . . Overloaded Fab Kills . | . . . Hacking | -11 -10 -10 --------- Run | Yrd Mat Min Machines Accessed 5 | . 5 . Terminals 4 | . 4 . Fabricators . | . . . Repair Stations . | . . . Recycling Units 1 | . 1 . Scanalyzers . | . . . Garrison Access . | . . . Total Hacks 19 | . 19 . Successful 10 | . 10 . Failed 9 | . 9 . Catastrophic 1 | . 1 . Database Lockouts . | . . . Manual . | . . . Terminals 18 | . 18 . Fabricators . | . . . Repair Stations . | . . . Recycling Units 1 | . 1 . Scanalyzers . | . . . Garrison Access . | . . . Terminal Hacks 9 | . 9 . Record 3 | . 3 . Prototype ID Bank 1 | . 1 . Recycling Unit Index 1 | . 1 . Alert Level 1 | . 1 . Maintenance Status 2 | . 2 . Zone Layout 1 | . 1 . Fabricator Hacks . | . . . Repair Station Hacks . | . . . Recycling Unit Hacks 1 | . 1 . Report Inventory 1 | . 1 . Scanalyzer . | . . . Garrison Access Hacks . | . . . Unauthorized Hacks . | . . . Terminals . | . . . Fabricators . | . . . Repair Stations . | . . . Recycling Units . | . . . Scanalyzers . | . . . Garrison Access . | . . . Data Cores Recovered 1 | . 1 . Used 1 | . 1 . Hacking Detections 4 | . 4 . Full Trace Events 4 | . 4 . Feedback Events . | . . . Feedback Blocked . | . . . Robot Schematics Acquired . | . . . Robots Built . | . . . Authchips . | . . . Time . | . . . Total Robot Build Rating . | . . . Part Schematics Acquired . | . . . Parts Built . | . . . Authchips . | . . . Time . | . . . Total Part Build Rating . | . . . Parts Repaired . | . . . Time . | . . . Parts Recycled . | . . . Recycled Matter . | . . . Retrieved Matter . | . . . Retrieved Components . | . . . Parts Scanalyzed . | . . . Part Schematics Acquired . | . . . Parts Damaged . | . . . Bothacking | -11 -10 -10 ------------ Run | Yrd Mat Min Used RIF Installer . | . . . Robots Hacked . | . . . Non-combat . | . . . Combat . | . . . Robot Hacks Applied . | . . . Relay Couplers Released . | . . . Fabnet Peak Effective % . | . . . Robots Rewired . | . . . Allies Hacked . | . . . Hacks Repelled . | . . . Allies | -11 -10 -10 -------- Run | Yrd Mat Min Total Allies . | . . . Largest Group . | . . . Highest-Rated Group . | . . . Highest-Rated Ally . | . . . Total Orders . | . . . Ally Attacks . | . . . Total Damage . | . . . Kills . | . . . Allies Corrupted . | . . . Allies Melted . | . . . Intel | -11 -10 -10 ------- Run | Yrd Mat Min Robot Analysis Total . | . . . Derelict Logs Recovered 1 | . . 1 Drone Launches . | . . . Drone Recoveries . | . . . Exploration | -11 -10 -10 ------------- Run | Yrd Mat Min Turns Passed 2139 | 74 1454 611 Spaces Moved 939 | 70 602 267 Core 16 | 16 . . Treads . | . . . Legs 662 | . 395 267 Wheels 261 | 54 207 . Hover . | . . . Flight . | . . . Fastest Speed 50 | 50 80 190 Average Speed 181 | 73 189 190 Slowest Speed 330 | 80 330 190 Overloaded Moves . | . . . Propulsion Burnouts . | . . . Robots Hopped . | . . . Cave-ins Triggered . | . . . Exploration Rate (%) 47 | 8 91 44 Regions Visited 2 Branch Regions 1 Pre-discovered Areas 1 | . . 1 Known Exits Taken . | . . . Unknown Exits Taken 2 | 1 1 . Scrap Searched . | . . . Spaces Dug . | . . . Terrain Destroyed . | . . . Melee . | . . . Projectile . | . . . AOE . | . . . Terrain Rammed . | . . . Walls Destroyed . | . . . Machines Disabled . | . . . Actions | -11 -10 -10 --------- Run | Yrd Mat Min Total 1148 | 86 748 314 Wait 8 | . 8 . Move 937 | 69 601 267 Hop . | . . . Pick Up 35 | 7 22 6 Fast Attach . | . . . Attach 14 | 6 7 1 Detach . | . . . Swap 13 | . 9 4 Drop 10 | . 8 2 Fire 131 | 4 93 34 Melee . | . . . Ram . | . . . Kick . | . . . Crush . | . . . Escape Stasis . | . . . Rewire . | . . . Trap . | . . . Miscellaneous . | . . . Route ------- -11/Scrapyard -10/Materials (discovered 6 exits: [*Mat x3] / [*Min x2] / [*Sub]) -10/Mines History --------- Turn | Location | Event 2 | -11/Scrapyard | Met Revision 17 46 | -11/Scrapyard | Discovered new exit (range 8) 75 | -11/Scrapyard | Entered Materials 247 | -10/Materials | Discovered new exit (range 9) 318 | -10/Materials | Build established: Mutant 356 | -10/Materials | Discovered new exit (range 4) 568 | -10/Materials | Discovered new exit (range 11) 664 | -10/Materials | Discovered new exit (range 15) 929 | -10/Materials | Core integrity fell below 50% 953 | -10/Materials | Discovered new exit (range 13) 1135 | -10/Materials | Discovered new exit (range 16) 1529 | -10/Materials | Entered Mines 1670 | -10/Mines | Learned location of 1 exit from Materials 1697 | -10/Mines | Core integrity fell below 20% 1927 | -10/Mines | Learned location of Storage (-8) 2140 | -10/Mines | Destroyed by G-47 Trooper with Particle Gun Last Messages --------------- numbers, and I suggest you do the same." 01929_ 8I-JAV(g) slips back into the shadows. 01951_ K-01 Serf collects debris. 01991_ R-06 Scavenger suffers critical hit (Destroy). 01991_ Destroyed Com. Wheel. 01993_ R-06 Scavenger destroyed. 02000_ Acquired 6 matter. 02011_ U-05 Engineer destroyed. 02023_ Acquired 6 matter. 02038_ Acquired Aluminum Leg. 02041_ Dropped Aluminum Leg. 02041_ Acquired 10 matter. 02061_ Acquired 2 matter. 02070_ Acquired Aluminum Leg. 02073_ Dropped Aluminum Leg. 02077_ Acquired 10 matter. 02096_ K-01 Serf collects debris. 02099_ Acquired 2 matter. 02127_ G-34 Mercenary destroyed. Map ----- +----------------------------------------------------+ | ?????????????????????????????????????????????????? | | ?????????????????????????????????????????????????? | | ?????????????????????????????????????????????????? | | ?????????????????????????????????????????????????? | | ?????????????????????????????????????????????????? | | ?????????????????????????????????????????????????? | | ?????????????????????????????????????????????????? | | ???????#?????????????????????????????????????????? | | ?????? #?????????????????????????????????????????? | | ????? #?????????????????????????????????????????? | | ????# #???? ##??????????????????????????????????? | | ##?# ### ?????????????????????????????????? | | ## ?????????????????????????????????? | | #??????????????????????????????????? | | #??????????????????????????????????? | | #???????????????????????????????????? | | #### #???????????????????????????????????? | | ##????? #???????????????????????????????????? | | ###????????? #???????????????????????????????????? | | #????????????????????????????????????????????????? | | #????????????????????????????????????????????????? | | ???????????????????????????????? "???????????????? | | ??????????????????????#???????"" "???????????????? | | ???????????????# ###### ?????""" """ #???????????? | | ????????????????? ####*[%!= ????????????? | | ??????????????????????# @ g """ "???????????????? | | ??????????????????????###=## """ "???????????????? | | ????????????????????????#%#????? "???????????????? | | #???????????????????????#=#??????????????????????? | | ##??????????????????????# #??????????????????????? | | #??????????????????????# #??????????????????????? | | #??????????????????????# #?????####?????????????? | | #??????????????????????#*#????## ##????????????? | | ##??????????????????????#!#????# ##???????????? | | #???????????????????????#=###### #???????????? | | #???????????????????????#*%=*=! ##??????????? | | #????????##?????????????###### ## ###????????? | | #???????## ###??????????###### ### ##???????? | | #???????# #?????????# % #?# ##??????? | | ########## ????####?#%#### #?## ###????? | | #?# #??## ### #??# ######## ##???? | | """ """ #??# ### = #?## ##?## #???? | | """ """ #???# ####?# #??## #???? | | """ """ #???## """ ##???# ##?## ##???? | | #????## """ #???# #?# ##????? | | """ """ ######## """ #??# #?# ##?????? | | """ """ #?# ##?# ##???### | | """ """ ### #### ##?# ##??# #??## | | #?# #??# ###??# ##??## #?## | | ##########?# #??## ##????# ##??## ### | +----------------------------------------------------+ Best States ------------- Heat Dissipation 39 Energy Generation 14 Energy Capacity 250 Matter Stores 300 Matter Capacity 300 Sight Range 16 Terrain Scan Density 10 Evasion (%) 50 Targeting Accuracy 5 Item Schematics ----------------- None Robot Schematics ------------------ None Fabricated ------------ Nothing Alien Tech Used ----------------- None Achievements -------------- None Challenges ------------ None Game ------ Seed FortressEfficiencyDissipator Manual? 0 Play Time 00:18:19 Cumulative 3.2 hours Start 2024.04.04 @ 20:45:20 End 2024.04.04 @ 21:02:41 Sessions 1 Manual Loads 0 Difficulty Rogue Special Mode None Game No. 3 Rogue 3 Adventurer 0 Explorer 0 Win Type - Total 0 Types 0/0/0/0/0/0/0/0/0 Lore% 2 Gallery% 6 Achievement% 8 Wizard Run 0 Options --------- Layout 1 ASCII 0 Keyboard 0 Movement Mouse Keybinds 0 Fullscreen 1 Font 32/SmallcapsGlow Map View 50x35 Zoom Use 0% Tactical HUD 1 Map Filters NONE Filters NONE Steam 1 RUN: 47aebd94-428a-4a58-b720-4f8ddd3b3847